fUSD/lending_fUSD_20240827
["ID","MTS","AMOUNT","RATE_DAILY","PERIOD"]
[336312644,1724772660924,-1027.27,0.00010958,2]
[336312645,1724772660933,-1192.26,0.00010958,2]
[336312646,1724772660943,-738.96,0.00010958,2]
[336312647,1724772660952,-1027.27,0.00010958,2]
[336312648,1724772660962,-500.0,0.00010958,2]
[336312649,1724772660974,-1027.27,0.00010958,2]
[336312650,1724772660983,-738.96,0.00010958,2]
[336312651,1724772660993,-1192.26,0.00010958,2]
[336312652,1724772661002,-1027.27,0.00010958,2]
[336312653,1724772661012,-738.96,0.00010958,2]
[336312654,1724772661022,-1192.26,0.00010958,2]
[336312655,1724772661032,-1027.27,0.00010958,2]
[336312656,1724772661042,-738.96,0.00010958,2]
[336312657,1724772661051,-509.2,0.00010958,2]
[336312658,1724772661060,-1192.26,0.00010958,2]
[336312659,1724772661069,-813.97093333,0.00010958,2]
[336312660,1724772661108,-213.29906667,0.00010958,2]
[336312661,1724772661118,-738.96,0.00010958,2]
[336312662,1724772661128,-1192.26,0.00010958,2]
[336312663,1724772661138,-1027.27,0.00010958,2]
[336312664,1724772661147,-738.96,0.00010958,2]
[336312665,1724772661156,-1192.26,0.00010958,2]
[336312666,1724772661166,-509.2,0.00010958,2]
[336312667,1724772661176,-500.0,0.00010958,2]
[336312668,1724772661185,-1027.27,0.00010958,2]
[336312669,1724772661195,-738.96,0.00010958,2]
[336312670,1724772661204,-509.2,0.00010958,2]
[336312671,1724772661214,-1192.26,0.00010958,2]
[336312672,1724772661224,-500.0,0.00010958,2]
[336312673,1724772661234,-1027.27,0.00010958,2]
[336312674,1724772661243,-509.2,0.00010958,2]
[336312675,1724772661253,-500.0,0.00010958,2]
[336312676,1724772661262,-738.96,0.00010958,2]
[336312677,1724772661271,-334.8326171,0.00010958,2]
[336312678,1724772661429,-857.4273829,0.00010958,2]
[336312679,1724772661438,-151.50397,0.00010958,2]
[336312680,1724772661447,-332.08723647,0.00010958,2]
[336312681,1724772661460,-648.49999999,0.00010958,2]
[336312682,1724772661472,-46.68276354,0.00010958,2]
[336312683,1724772661481,-738.96,0.00010958,2]
[336312684,1724772661490,-500.0,0.00010958,2]
[336312685,1724772661499,-509.2,0.00010958,2]
[336312686,1724772661508,-1192.26,0.00010958,2]
[336312687,1724772661518,-500.42152019,0.00010958,2]
[336312688,1724772661527,-500.0,0.00010958,2]
[336312689,1724772661536,-738.96,0.00010958,2]
[336312690,1724772661546,-509.2,0.00010958,2]
[336312691,1724772661559,-1192.26,0.00010958,2]
[336312692,1724772661568,-500.0,0.00010958,2]
[336312693,1724772661578,-1027.27,0.00010958,2]
[336312694,1724772661587,-500.0,0.00010958,2]
[336312695,1724772661598,-509.2,0.00010958,2]
[336312696,1724772661607,-500.0,0.00010958,2]
[336312697,1724772661617,-1192.26,0.00010958,2]
[336312698,1724772661628,-738.96,0.00010958,2]
[336312699,1724772661637,-974.76571627,0.00010958,2]
[336312700,1724772661655,-52.50428373,0.00010958,2]
[336312701,1724772661664,-247.20693149,0.00010958,2]
[336312702,1724772661677,-252.79306851,0.00010958,2]
[336312703,1724772661688,-407.48193148,0.00010958,2]
[336312704,1724772661700,-101.71806852,0.00010958,2]
[336312705,1724772661710,-1192.26,0.00010958,2]
[336312706,1724772661727,-500.0,0.00010958,2]
[336312707,1724772661740,-214.45341887,0.00010958,2]
[336312708,1724772776978,3848.45586199,9.818e-05,2]
[336312709,1724772776998,5508.50083801,9.818e-05,2]
[336312710,1724772865503,269.58,8.219e-05,2]
[336312711,1724773037688,-516.47122088,0.00016,30]
[336312712,1724773078472,1000.0,9.798e-05,2]
[336312713,1724773432557,256.1,8.219e-05,2]
[336312714,1724773515785,150.0,9.838e-05,2]
[336312719,1724773729470,268.4,9.516e-05,2]
[336312720,1724773737664,1000.0,9.529e-05,2]
[336312721,1724773741358,300.0,9.909e-05,2]
[336312798,1724773760026,155.0,9.899e-05,2]
[336312799,1724773761977,510.89036362,9.899e-05,2]
[336312806,1724773769833,478.21553409,9.899e-05,2]
[336312807,1724773771010,103.31326428,9.899e-05,2]
[336312808,1724773771032,51.68673572,9.899e-05,2]
[336312809,1724773774864,309.64483127,9.899e-05,2]
[336312810,1724773788328,600.74422133,9.899e-05,2]
[336312816,1724773795696,197.0,9.909e-05,2]
[336312818,1724773795978,531.26864504,9.899e-05,2]
[336312819,1724773801574,300.0,9.909e-05,2]
[336312820,1724773805945,869.59,9.623e-05,2]
[336312821,1724773807595,380.32741541,9.899e-05,2]
[336312822,1724773813412,338.15690587,9.899e-05,2]
[336312823,1724773814137,255.50832057,9.899e-05,2]
[336312824,1724773816600,432.99728799,9.899e-05,2]
[336312825,1724773818623,164.40260801,9.899e-05,2]
[336312836,1724773832135,-155.25240126,9.91e-05,2]
[336312837,1724773832145,-500.0,9.972e-05,2]
[336312838,1724773832154,-55.75878562,9.99e-05,2]
[336312839,1724773832166,-301.29121438,9.99e-05,2]
[336312840,1724773832176,-155.25901486,9.999e-05,2]
[336312841,1724773832185,-200.0,0.0001,3]
[336312842,1724773832195,-357.05,0.0001,2]
[336312843,1724773832204,-710.0889,0.000101,2]
[336312844,1724773832214,-500.0,0.000101,3]
[336312845,1724773832223,-304.22159437,0.000101,2]
[336312846,1724773832235,-52.82840563,0.000101,2]
[336312847,1724773832245,-700.0,0.000102,3]
[336312848,1724773832255,-4052.3768537,0.000102,2]
[336312849,1724773832272,-854.16488114,0.000102,2]
[336312850,1724773832283,-595.63513767,0.000102,2]
[336312851,1724773832294,-1091.53312749,0.000102,2]
[336312852,1724773832303,-40.85409776,0.00010274,2]
[336312853,1724773832319,-109.14590224,0.00010274,2]
[336312854,1724773832329,-1000.0,0.000103,3]
[336312855,1724773832343,-1598.79567782,0.00010326,2]
[336312856,1724773832352,-499.99,0.00010326,2]
[336312857,1724773832362,-164.5,0.00010381,2]
[336312858,1724773832371,-299.99,0.00010381,2]
[336312859,1724773832380,-150.0,0.00010385,2]
[336312860,1724773832390,-714.1,0.000104,2]
[336312861,1724773832399,-1200.0,0.000104,3]
[336312862,1724773832408,-256.1,0.00010466,2]
[336312863,1724773832417,-179.99,0.00010466,2]
[336312864,1724773832427,-150.0,0.00010499,2]
[336312865,1724773832436,-3330.8,0.000105,2]
[336312866,1724773832446,-5796.83841994,0.000105,2]
[336312867,1724773832458,-3307.22158006,0.000105,2]
[336312868,1724773832468,-200.0,0.000105,3]
[336312869,1724773832479,-155.0,0.00010505,2]
[336312870,1724773832488,-397.75,0.00010539,2]
[336312871,1724773832498,-531.48,0.00010539,2]
[336312872,1724773832508,-150.0,0.00010539,2]
[336312873,1724773832518,-850.01,0.00010539,2]
[336312874,1724773832528,-200.0,0.000106,3]
[336312875,1724773832538,-200.0,0.000107,3]
[336312876,1724773832548,-268.4,0.00010706,2]
[336312877,1724773832558,-1000.0,0.0001072,2]
[336312878,1724773832568,-401.85092769,0.000108,2]
[336312879,1724773832578,-200.0,0.000108,3]
[336312880,1724773832598,-2429.70795,0.0001085,2]
[336312881,1724773832617,-4473.2985,0.0001085,2]
[336312882,1724773832627,-2726.451,0.0001085,2]
[336312883,1724773832637,-5707.3055,0.0001085,2]
[336312884,1724773832646,-2676.697,0.0001085,2]
[336312885,1724773832656,-500.0,0.0001085,2]
[336312886,1724773832667,-14133.72072945,0.0001085,2]
[336312887,1724773832679,-2058.80792116,0.0001085,2]
[336312888,1724773832691,-835.76890851,0.0001085,2]
[336312889,1724773832705,-497.48514,0.0001085,2]
[336312890,1724773832730,-360.68431585,0.0001085,2]
[336312891,1724773832741,-536.83568415,0.0001085,2]
[336312892,1724773832755,-147222.27290088,0.0001085,2]
[336312893,1724773832765,-7500.0,0.0001085,2]
[336312894,1724773832774,-1923.0,0.00010851,2]
[336312895,1724773832784,-1544.0,0.00010851,2]
[336312896,1724773832794,-623.0,0.00010851,2]
[336312897,1724773832804,-1258.0,0.00010851,2]
[336312898,1724773832813,-556.0,0.00010851,2]
[336312899,1724773832824,-1255.89,0.00010851,2]
[336312900,1724773832836,-447.0,0.00010851,2]
[336312901,1724773832854,-150.387,0.00010851,2]
[336312902,1724773832864,-809.0,0.00010851,2]
[336312903,1724773832873,-552.0,0.00010851,2]
[336312904,1724773832883,-1998.991,0.00010851,2]
[336312905,1724773832894,-449.194,0.00010851,2]
[336312906,1724773832905,-337.438,0.00010851,2]
[336312907,1724773832914,-1206.0,0.00010851,2]
[336312908,1724773832924,-3730.0,0.00010851,2]
[336312909,1724773832935,-359.19800855,0.00010855,2]
[336312910,1724773832944,-359.19800855,0.00010857,2]
[336312911,1724773832954,-168.26330187,0.00010858,2]
[336312912,1724773832965,-4010.5622058,0.00010858,2]
[336312913,1724773832976,-382.94064892,0.00010858,2]
[336312914,1724773832987,-359.19800855,0.00010858,2]
[336312915,1724773832997,-1214.3733,0.00010858,2]
[336312916,1724773833007,-185.41,0.00010861,2]
[336312917,1724773833017,-4010.56220578,0.00010879,2]
[336312918,1724773833028,-382.94064891,0.00010879,2]
[336312919,1724773833039,-600.0,0.000109,3]
[336312920,1724773833049,-1841.76927791,0.000109,2]
[336312921,1724773833059,-1841.76927787,0.000109,2]
[336312922,1724773833069,-1841.76927787,0.000109,2]
[336312923,1724773833084,-1841.76927787,0.000109,2]
[336312924,1724773833094,-1841.76927787,0.000109,2]
[336312925,1724773833103,-1841.76927787,0.000109,2]
[336312926,1724773833114,-657.87561012,0.000109,2]
[336312927,1724773833149,-1183.89366775,0.000109,2]
[336312928,1724773833158,-1841.76927787,0.000109,2]
[336312929,1724773833168,-4010.56220578,0.000109,2]
[336312930,1724773833178,-382.94064891,0.000109,2]
[336312931,1724773833187,-420.0,0.000109,2]
[336312932,1724773833197,-150.0,0.00010932,2]
[336312933,1724773833207,-17689.65835276,0.0001094,2]
[336312934,1724773833218,-1415.68371976,0.0001094,2]
[336312935,1724773833227,-150.78,0.0001094,2]
[336312936,1724773833237,-150.78,0.0001094,2]
[336312937,1724773833247,-150.78,0.00010947,2]
[336312938,1724773833258,-155.71312953,0.00010947,2]
[336312939,1724773833267,-1415.68371976,0.00010948,2]
[336312940,1724773833278,-1415.68371976,0.00010948,2]
[336312941,1724773833287,-150.78,0.00010948,2]
[336312942,1724773833298,-266.84672263,0.00010949,2]
[336312943,1724773833309,-709992.63717802,0.0001095,3]
[336312944,1724773833318,-191.7740039,0.0001095,2]
[336312945,1724773833328,-467.13938859,0.00010955,2]
[336312946,1724773833338,-516.0,0.00010957,2]
[336312947,1724773833348,-57844.30898108,0.00010957,2]
[336312948,1724773833358,-188.9802981,0.00010957,2]
[336312949,1724773833368,-150.99456627,0.00010957,2]
[336312950,1724773833378,-151.0,0.00010958,2]
[336312951,1724773833388,-151.0,0.00010958,2]
[336312952,1724773833398,-151.0,0.00010958,2]
[336312953,1724773833408,-151.0,0.00010958,2]
[336312954,1724773833417,-151.0,0.00010958,2]
[336312955,1724773833428,-151.0,0.00010958,2]
[336312956,1724773833438,-174.738289,0.00010958,2]
[336312957,1724773833448,-174.738289,0.00010958,2]
[336312958,1724773833457,-174.738289,0.00010958,2]
[336312959,1724773833467,-174.738289,0.00010958,2]
[336312960,1724773833477,-174.738289,0.00010958,2]
[336312961,1724773833487,-174.738289,0.00010958,2]
[336312962,1724773833497,-174.738289,0.00010958,2]
[336312963,1724773833507,-174.738289,0.00010958,2]
[336312964,1724773833516,-174.738289,0.00010958,2]
[336312965,1724773833527,-174.738289,0.00010958,2]
[336312966,1724773833536,-174.738281,0.00010958,2]
[336312967,1724773833546,-151.313902,0.00010958,2]
[336312968,1724773833555,-500.0,0.00010958,2]
[336312969,1724773833564,-500.0,0.00010958,2]
[336312970,1724773833574,-472.90771652,0.00010958,2]
[336312971,1724773833588,-163.63328575,0.00010958,2]
[336312972,1724773833598,-500.0,0.00010958,2]
[336312973,1724773833608,-500.0,0.00010958,2]
[336312974,1724773833617,-500.0,0.00010958,2]
[336312975,1724773833628,-500.0,0.00010958,2]
[336312976,1724773833638,-500.0,0.00010958,2]
[336312977,1724773833648,-500.0,0.00010958,2]
[336312978,1724773833658,-500.0,0.00010958,2]
[336312979,1724773833668,-500.0,0.00010958,2]
[336312980,1724773833678,-500.0,0.00010958,2]
[336312981,1724773833688,-463.18701262,0.00010958,2]
[336312982,1724773833697,-500.0,0.00010958,2]
[336312983,1724773833707,-500.0,0.00010958,2]
[336312984,1724773833717,-500.0,0.00010958,2]
[336312985,1724773833727,-511.48478549,0.00010958,2]
[336312986,1724773833737,-500.0,0.00010958,2]
[336312987,1724773833746,-482.96366525,0.00010958,2]
[336312988,1724773833757,-501.31342708,0.00010958,2]
[336312989,1724773833769,-385.47205069,0.00010958,2]
[336312990,1724773833779,-342.48761112,0.00010958,2]
[336312991,1724773833789,-500.0,0.00010958,2]
[336312992,1724773833798,-500.0,0.00010958,2]
[336312993,1724773833809,-500.0,0.00010958,2]
[336312994,1724773833818,-500.0,0.00010958,2]
[336312995,1724773833828,-500.0,0.00010958,2]
[336312996,1724773833841,-500.0,0.00010958,2]
[336312997,1724773833851,-500.0,0.00010958,2]
[336312998,1724773833862,-500.0,0.00010958,2]
[336312999,1724773833872,-500.0,0.00010958,2]
[336313000,1724773833882,-500.0,0.00010958,2]
[336313001,1724773833894,-500.0,0.00010958,2]
[336313002,1724773833906,-500.0,0.00010958,2]
[336313003,1724773833917,-500.0,0.00010958,2]
[336313004,1724773833927,-500.0,0.00010958,2]
[336313005,1724773833938,-500.0,0.00010958,2]
[336313006,1724773833947,-647.29987791,0.00010958,2]
[336313007,1724773833958,-680.44,0.00010958,2]
[336313008,1724773833968,-680.44,0.00010958,2]
[336313009,1724773833979,-680.44,0.00010958,2]
[336313010,1724773833990,-680.44,0.00010958,2]
[336313011,1724773834000,-680.44,0.00010958,2]
[336313012,1724773834010,-680.44,0.00010958,2]
[336313013,1724773834019,-680.44,0.00010958,2]
[336313014,1724773834040,-680.44,0.00010958,2]
[336313015,1724773834050,-680.44,0.00010958,2]
[336313016,1724773834060,-680.44,0.00010958,2]
[336313017,1724773834071,-680.44,0.00010958,2]
[336313018,1724773834082,-680.44,0.00010958,2]
[336313019,1724773834093,-680.44,0.00010958,2]
[336313020,1724773834112,-680.44,0.00010958,2]
[336313021,1724773834124,-680.44,0.00010958,2]
[336313022,1724773834134,-680.44,0.00010958,2]
[336313023,1724773834144,-680.44,0.00010958,2]
[336313024,1724773834153,-680.44,0.00010958,2]
[336313025,1724773834164,-680.44,0.00010958,2]
[336313026,1724773834175,-680.44,0.00010958,2]
[336313027,1724773834185,-680.44,0.00010958,2]
[336313028,1724773834195,-680.44,0.00010958,2]
[336313029,1724773834206,-680.44,0.00010958,2]
[336313030,1724773834216,-500.0,0.00010958,2]
[336313031,1724773834227,-680.6081393,0.00010958,2]
[336313032,1724773834238,-500.0,0.00010958,2]
[336313033,1724773834248,-500.0,0.00010958,2]
[336313034,1724773834258,-797.35,0.00010958,2]
[336313035,1724773834269,-797.35,0.00010958,2]
[336313036,1724773834278,-797.35,0.00010958,2]
[336313037,1724773834288,-797.35,0.00010958,2]
[336313038,1724773834298,-797.35,0.00010958,2]
[336313039,1724773834308,-797.35,0.00010958,2]
[336313040,1724773834318,-797.35,0.00010958,2]
[336313041,1724773834328,-797.35,0.00010958,2]
[336313042,1724773834340,-797.35,0.00010958,2]
[336313043,1724773834350,-797.35,0.00010958,2]
[336313044,1724773834360,-797.35,0.00010958,2]
[336313045,1724773834370,-797.35,0.00010958,2]
[336313046,1724773834380,-797.35,0.00010958,2]
[336313047,1724773834389,-797.35,0.00010958,2]
[336313048,1724773834399,-797.35,0.00010958,2]
[336313049,1724773834409,-797.35,0.00010958,2]
[336313050,1724773834420,-797.35,0.00010958,2]
[336313051,1724773834430,-797.35,0.00010958,2]
[336313052,1724773834440,-797.35,0.00010958,2]
[336313053,1724773834449,-797.35,0.00010958,2]
[336313054,1724773834460,-797.35,0.00010958,2]
[336313055,1724773834469,-797.35,0.00010958,2]
[336313056,1724773834479,-797.35,0.00010958,2]
[336313057,1724773834489,-797.54221085,0.00010958,2]
[336313058,1724773834499,-1474.7,0.00010958,2]
[336313059,1724773834510,-1474.7,0.00010958,2]
[336313060,1724773834521,-1474.7,0.00010958,2]
[336313061,1724773834533,-1474.7,0.00010958,2]
[336313062,1724773834543,-1474.7,0.00010958,2]
[336313063,1724773834553,-1474.7,0.00010958,2]
[336313064,1724773834564,-1474.7,0.00010958,2]
[336313065,1724773834574,-1474.7,0.00010958,2]
[336313066,1724773834585,-500.0,0.00010958,2]
[336313067,1724773834595,-1474.7,0.00010958,2]
[336313068,1724773834605,-500.0,0.00010958,2]
[336313069,1724773834615,-1474.7,0.00010958,2]
[336313070,1724773834624,-500.0,0.00010958,2]
[336313071,1724773834634,-417.82842604,0.00010958,2]
[336313072,1724773834644,-1474.7,0.00010958,2]
[336313073,1724773834654,-500.88602185,0.00010958,2]
[336313074,1724773834663,-500.0,0.00010958,2]
[336313075,1724773834674,-1474.7,0.00010958,2]
[336313076,1724773834684,-500.0,0.00010958,2]
[336313077,1724773834693,-1474.7,0.00010958,2]
[336313078,1724773834703,-1474.7,0.00010958,2]
[336313079,1724773834713,-500.0,0.00010958,2]
[336313080,1724773834723,-1474.7,0.00010958,2]
[336313081,1724773834733,-500.0,0.00010958,2]
[336313082,1724773834743,-1474.7,0.00010958,2]
[336313083,1724773834752,-500.0,0.00010958,2]
[336313084,1724773834762,-1474.7,0.00010958,2]
[336313085,1724773834771,-1474.7,0.00010958,2]
[336313086,1724773834782,-1474.7,0.00010958,2]
[336313087,1724773834791,-500.0,0.00010958,2]
[336313088,1724773834801,-1474.7,0.00010958,2]
[336313089,1724773834811,-500.0,0.00010958,2]
[336313090,1724773834820,-1474.7,0.00010958,2]
[336313091,1724773834832,-500.0,0.00010958,2]
[336313092,1724773834842,-1474.7,0.00010958,2]
[336313093,1724773834852,-500.0,0.00010958,2]
[336313094,1724773834862,-1474.7,0.00010958,2]
[336313095,1724773834871,-209.73536206,0.00010958,2]
[336313096,1724773834881,-936.04,0.00010958,2]
[336313097,1724773834892,-1474.89713154,0.00010958,2]
[336313098,1724773834909,-936.04,0.00010958,2]
[336313099,1724773834919,-936.04,0.00010958,2]
[336313100,1724773834930,-936.04,0.00010958,2]
[336313101,1724773834940,-936.04,0.00010958,2]
[336313102,1724773834951,-936.04,0.00010958,2]
[336313103,1724773834961,-936.04,0.00010958,2]
[336313104,1724773834971,-936.04,0.00010958,2]
[336313105,1724773834981,-936.04,0.00010958,2]
[336313106,1724773834991,-936.04,0.00010958,2]
[336313107,1724773835000,-936.04,0.00010958,2]
[336313108,1724773835010,-936.04,0.00010958,2]
[336313109,1724773835020,-936.04,0.00010958,2]
[336313110,1724773835030,-936.04,0.00010958,2]
[336313111,1724773835039,-936.04,0.00010958,2]
[336313112,1724773835049,-936.04,0.00010958,2]
[336313113,1724773835060,-936.04,0.00010958,2]
[336313114,1724773835069,-936.04,0.00010958,2]
[336313115,1724773835079,-936.04,0.00010958,2]
[336313116,1724773835091,-936.04,0.00010958,2]
[336313117,1724773835101,-936.04,0.00010958,2]
[336313118,1724773835110,-936.04,0.00010958,2]
[336313119,1724773835121,-936.04,0.00010958,2]
[336313120,1724773835131,-936.23322778,0.00010958,2]
[336313121,1724773835141,-500.0,0.00010958,2]
[336313122,1724773835150,-500.0,0.00010958,2]
[336313123,1724773835160,-500.0,0.00010958,2]
[336313124,1724773835169,-500.0,0.00010958,2]
[336313125,1724773835180,-500.0,0.00010958,2]
[336313126,1724773835190,-500.0,0.00010958,2]
[336313127,1724773835199,-500.0,0.00010958,2]
[336313128,1724773835386,-500.0,0.00010958,2]
[336313129,1724773835395,-500.0,0.00010958,2]
[336313130,1724773835406,-500.0,0.00010958,2]
[336313131,1724773835416,-500.0,0.00010958,2]
[336313132,1724773835425,-500.0,0.00010958,2]
[336313133,1724773835434,-500.0,0.00010958,2]
[336313134,1724773835443,-500.0,0.00010958,2]
[336313135,1724773835452,-231.44,0.00010958,2]
[336313136,1724773835462,-500.0,0.00010958,2]
[336313137,1724773835471,-611.3,0.00010958,2]
[336313138,1724773835480,-500.0,0.00010958,2]
[336313139,1724773835490,-500.0,0.00010958,2]
[336313140,1724773835499,-500.0,0.00010958,2]
[336313141,1724773835508,-500.0,0.00010958,2]
[336313142,1724773835518,-500.0,0.00010958,2]
[336313143,1724773835528,-500.0,0.00010958,2]
[336313144,1724773835538,-500.0,0.00010958,2]
[336313145,1724773835547,-500.0,0.00010958,2]
[336313146,1724773835557,-500.0,0.00010958,2]
[336313147,1724773835566,-500.0,0.00010958,2]
[336313148,1724773835576,-500.0,0.00010958,2]
[336313149,1724773835587,-367.72913278,0.00010958,2]
[336313150,1724773835605,-490.32121489,0.00010958,2]
[336313151,1724773835614,-500.0,0.00010958,2]
[336313152,1724773835624,-500.0,0.00010958,2]
[336313153,1724773835633,-168.06648608,0.00010958,2]
[336313154,1724773835642,-626.51,0.00010958,2]
[336313155,1724773835652,-626.51,0.00010958,2]
[336313156,1724773835661,-1045.31,0.00010958,2]
[336313157,1724773835671,-1045.31,0.00010958,2]
[336313158,1724773835680,-626.51,0.00010958,2]
[336313159,1724773835690,-1045.31,0.00010958,2]
[336313160,1724773835699,-626.51,0.00010958,2]
[336313161,1724773835709,-1045.31,0.00010958,2]
[336313162,1724773835718,-626.51,0.00010958,2]
[336313163,1724773835728,-1045.31,0.00010958,2]
[336313164,1724773835737,-626.51,0.00010958,2]
[336313165,1724773835747,-1045.31,0.00010958,2]
[336313166,1724773835757,-626.51,0.00010958,2]
[336313167,1724773835766,-1045.31,0.00010958,2]
[336313168,1724773835776,-151.0,0.00010958,2]
[336313169,1724773835786,-1045.31,0.00010958,2]
[336313170,1724773835795,-626.51,0.00010958,2]
[336313171,1724773835804,-151.0,0.00010958,2]
[336313172,1724773835814,-500.0,0.00010958,2]
[336313173,1724773835824,-1045.31,0.00010958,2]
[336313174,1724773835837,-626.51,0.00010958,2]
[336313175,1724773835847,-151.0,0.00010958,2]
[336313176,1724773835858,-574.58955076,0.00010958,2]
[336313177,1724773835867,-1045.31,0.00010958,2]
[336313178,1724773835876,-626.51,0.00010958,2]
[336313179,1724773835886,-151.0,0.00010958,2]
[336313180,1724773835897,-1045.31,0.00010958,2]
[336313181,1724773835908,-626.51,0.00010958,2]
[336313182,1724773835917,-1045.31,0.00010958,2]
[336313183,1724773835926,-151.0,0.00010958,2]
[336313184,1724773835936,-626.51,0.00010958,2]
[336313185,1724773835946,-1045.31,0.00010958,2]
[336313186,1724773835956,-151.0,0.00010958,2]
[336313187,1724773835966,-626.51,0.00010958,2]
[336313188,1724773835976,-1045.31,0.00010958,2]
[336313189,1724773835986,-151.0,0.00010958,2]
[336313190,1724773835996,-626.51,0.00010958,2]
[336313191,1724773836006,-1045.31,0.00010958,2]
[336313192,1724773836016,-151.0,0.00010958,2]
[336313193,1724773836026,-1045.31,0.00010958,2]
[336313194,1724773836036,-626.51,0.00010958,2]
[336313195,1724773836046,-1045.31,0.00010958,2]
[336313196,1724773836055,-151.0,0.00010958,2]
[336313197,1724773836065,-626.51,0.00010958,2]
[336313198,1724773836074,-1045.31,0.00010958,2]
[336313199,1724773836085,-151.0,0.00010958,2]
[336313200,1724773836095,-1045.31,0.00010958,2]
[336313201,1724773836105,-151.0,0.00010958,2]
[336313202,1724773836115,-1045.31,0.00010958,2]
[336313203,1724773836125,-626.51,0.00010958,2]
[336313204,1724773836134,-1045.31,0.00010958,2]
[336313205,1724773836143,-151.0,0.00010958,2]
[336313206,1724773836153,-626.51,0.00010958,2]
[336313207,1724773836162,-270.788496,0.00010958,2]
[336313208,1724773836172,-626.51,0.00010958,2]
[336313209,1724773836182,-500.0,0.00010958,2]
[336313210,1724773836191,-1045.31,0.00010958,2]
[336313211,1724773836200,-500.0,0.00010958,2]
[336313212,1724773836211,-626.51,0.00010958,2]
[336313213,1724773836220,-1045.31,0.00010958,2]
[336313214,1724773836229,-626.51,0.00010958,2]
[336313215,1724773836239,-1045.35455288,0.00010958,2]
[336313216,1724773836248,-626.51,0.00010958,2]
[336313217,1724773836257,-626.51,0.00010958,2]
[336313218,1724773836267,-626.51526717,0.00010958,2]
[336313219,1724773836277,-1165.14,0.00010958,2]
[336313220,1724773836287,-1165.14,0.00010958,2]
[336313221,1724773836296,-1165.14,0.00010958,2]
[336313222,1724773836306,-1165.14,0.00010958,2]
[336313223,1724773836315,-1165.14,0.00010958,2]
[336313224,1724773836325,-1165.14,0.00010958,2]
[336313225,1724773836335,-1165.14,0.00010958,2]
[336313226,1724773836345,-1165.14,0.00010958,2]
[336313227,1724773836355,-1165.14,0.00010958,2]
[336313228,1724773836364,-1165.14,0.00010958,2]
[336313229,1724773836373,-500.0,0.00010958,2]
[336313230,1724773836383,-1165.14,0.00010958,2]
[336313231,1724773836392,-500.0,0.00010958,2]
[336313232,1724773836401,-1165.14,0.00010958,2]
[336313233,1724773836410,-500.0,0.00010958,2]
[336313234,1724773836420,-1165.14,0.00010958,2]
[336313235,1724773836429,-500.0,0.00010958,2]
[336313236,1724773836439,-1165.14,0.00010958,2]
[336313237,1724773836448,-500.0,0.00010958,2]
[336313238,1724773836458,-1165.14,0.00010958,2]
[336313239,1724773836467,-500.0,0.00010958,2]
[336313240,1724773836477,-1165.14,0.00010958,2]
[336313241,1724773836486,-1165.14,0.00010958,2]
[336313242,1724773836496,-1165.14,0.00010958,2]
[336313243,1724773836506,-1165.14,0.00010958,2]
[336313244,1724773836515,-1165.14,0.00010958,2]
[336313245,1724773836525,-1165.14,0.00010958,2]